fUSD/lending_fUSD_20250525
["ID","MTS","AMOUNT","RATE_DAILY","PERIOD"]
[362354790,1748212240149,-420.0,0.00019779,2]
[362354791,1748212240159,-420.0,0.00019779,2]
[362354792,1748212240170,-420.0,0.00019779,2]
[362354793,1748212240180,-420.0,0.00019779,2]
[362354794,1748212240191,-420.0,0.00019779,2]
[362354795,1748212240201,-489.52,0.00019779,2]
[362354796,1748212240211,-38802.04211241,0.0001978,2]
[362354797,1748212240224,-274.81014695,0.0001978,2]
[362354798,1748212240237,-9295.95419367,0.0001978,2]
[362354799,1748212240250,-507.44,0.0001978,2]
[362354800,1748212240391,-94.09140487,0.0001978,2]
[362354801,1748212240407,-9096.64373114,0.0001978,2]
[362354802,1748212240418,-8947.21879473,0.0001978,2]
[362354803,1748212240429,-8943.78386462,0.0001978,2]
[362354804,1748212240440,-9077.54866152,0.0001978,2]
[362354805,1748212240451,-8943.84023489,0.0001978,2]
[362354806,1748212240461,-139610.81250466,0.0001978,2]
[362354807,1748212240470,-7334.78387932,0.00019781,2]
[362354808,1748212240479,-7574.05904395,0.00019786,2]
[362354809,1748212240488,-1000.0,0.00019787,2]
[362354810,1748212240497,-170.33310645,0.00019798,2]
[362354811,1748212240506,-7334.78387932,0.00019805,2]
[362354812,1748212240515,-150.0,0.00019805,2]
[362354813,1748212240524,-7574.05904395,0.00019809,2]
[362354814,1748212240534,-5800.0,0.00019824,2]
[362354815,1748212240543,-1000.0,0.00019824,2]
[362354816,1748212240552,-7334.78387932,0.00019829,2]
[362354817,1748212240561,-7574.05904395,0.00019832,2]
[362354818,1748212240570,-5800.0,0.00019832,2]
[362354819,1748212240580,-1000.0,0.00019839,2]
[362354820,1748212240589,-5800.0,0.00019841,2]
[362354821,1748212240598,-499.01717826,0.00019845,2]
[362354822,1748212240607,-170.33310645,0.00019849,2]
[362354823,1748212240617,-5800.0,0.00019849,2]
[362354824,1748212240626,-7334.78387932,0.00019852,2]
[362354825,1748212240636,-7574.05904395,0.00019854,2]
[362354826,1748212240645,-1000.0,0.00019855,2]
[362354827,1748212240655,-5800.0,0.00019858,2]
[362354828,1748212240666,-5800.0,0.00019866,2]
[362354829,1748212240677,-7372.1252,0.00019867,2]
[362354830,1748212240688,-5800.0,0.00019875,2]
[362354831,1748212240698,-7334.78387932,0.00019876,2]
[362354832,1748212240708,-7574.05904395,0.00019877,2]
[362354833,1748212240719,-5800.0,0.00019883,2]
[362354834,1748212240732,-150.0,0.00019885,2]
[362354835,1748212240742,-5800.0,0.00019892,2]
[362354836,1748212240751,-1000.0,0.00019894,2]
[362354837,1748212240760,-955.91286076,0.00019895,2]
[362354838,1748212240770,-420.0,0.00019898,2]
[362354839,1748212240780,-227.01298832,0.00019899,2]
[362354840,1748212240789,-223.35523599,0.00019899,2]
[362354841,1748212240798,-565.08,0.00019899,2]
[362354842,1748212240808,-478.72,0.00019899,2]
[362354843,1748212240819,-420.0,0.00019899,2]
[362354844,1748212240828,-420.0,0.00019899,2]
[362354845,1748212240838,-420.0,0.00019899,2]
[362354846,1748212240849,-223.35523595,0.00019899,2]
[362354847,1748212240858,-223.35523595,0.00019899,2]
[362354848,1748212240868,-223.35523595,0.000199,2]
[362354849,1748212240878,-223.35523595,0.000199,2]
[362354850,1748212240887,-223.35523595,0.000199,2]
[362354851,1748212240897,-5800.0,0.000199,2]
[362354852,1748212240907,-223.35523595,0.000199,2]
[362354853,1748212240918,-1086.81992384,0.000199,7]
[362354854,1748212240927,-170.33310645,0.000199,2]
[362354855,1748212240937,-7574.05904395,0.000199,2]
[362354856,1748212240946,-1402.56405318,0.000199,2]
[362354857,1748212240958,-7334.78387932,0.000199,2]
[362354858,1748212240968,-31927.23338572,0.000199,2]
[362354859,1748212240977,-216.6305344,0.000199,2]
[362354860,1748212240987,-1000.0,0.00019915,2]
[362354861,1748212240996,-1000.0,0.00019927,2]
[362354862,1748212241005,-1000.0,0.00019931,2]
[362354863,1748212241014,-150.0,0.00019945,2]
[362354864,1748212241024,-1000.0,0.00019959,2]
[362354865,1748212241035,-1600.0,0.0001997,2]
[362354866,1748212241045,-903.22837266,0.0001997,2]
[362354867,1748212241054,-500.0,0.00019973,2]
[362354868,1748212241063,-500.0,0.00019973,2]
[362354869,1748212241072,-500.0,0.00019973,2]
[362354870,1748212241082,-500.0,0.00019973,2]
[362354871,1748212241091,-505.83607181,0.0001998,2]
[362354872,1748212241100,-156.49053101,0.0001999,2]
[362354873,1748212241109,-168.654,0.0001999,2]
[362354874,1748212241119,-156.49053101,0.0001999,2]
[362354875,1748212241128,-156.49053101,0.0001999,2]
[362354876,1748212241138,-420.0,0.00019992,2]
[362354877,1748212241147,-500.0,0.00019992,2]
[362354878,1748212241157,-420.0,0.00019992,2]
[362354879,1748212241167,-420.0,0.00019992,2]
[362354880,1748212241176,-420.0,0.00019992,2]
[362354881,1748212241186,-420.0,0.00019992,2]
[362354882,1748212241195,-420.0,0.00019992,2]
[362354883,1748212241207,-420.0,0.00019992,2]
[362354884,1748212241216,-420.0,0.00019992,2]
[362354885,1748212241225,-420.0,0.00019992,2]
[362354886,1748212241235,-420.0,0.00019992,2]
[362354887,1748212241244,-367.02,0.00019992,2]
[362354888,1748212241254,-420.0,0.00019992,2]
[362354889,1748212241264,-420.0,0.00019992,2]
[362354890,1748212241273,-420.0,0.00019992,2]
[362354891,1748212241283,-420.0,0.00019992,2]
[362354892,1748212241293,-420.0,0.00019992,2]
[362354893,1748212241303,-420.0,0.00019992,2]
[362354894,1748212241313,-493.6,0.00019992,2]
[362354895,1748212241322,-420.0,0.00019993,2]
[362354896,1748212241331,-420.0,0.00019993,2]
[362354897,1748212241340,-420.0,0.00019993,2]
[362354898,1748212241349,-420.0,0.00019993,2]
[362354899,1748212241358,-420.0,0.00019993,2]
[362354900,1748212241368,-420.0,0.00019993,2]
[362354901,1748212241378,-522.83,0.00019993,2]
[362354902,1748212241388,-420.0,0.00019993,2]
[362354903,1748212241397,-420.0,0.00019993,2]
[362354904,1748212241408,-197.81,0.00019993,2]
[362354905,1748212241418,-420.0,0.00019993,2]
[362354906,1748212241428,-420.0,0.00019993,2]
[362354907,1748212241438,-420.0,0.00019993,2]
[362354908,1748212241446,-423.67501387,0.00019993,2]
[362354909,1748212241458,-424.58,0.00019993,2]
[362354910,1748212241467,-420.0,0.00019993,2]
[362354911,1748212241477,-426.37400728,0.00019993,2]
[362354912,1748212241486,-420.0,0.00019993,2]
[362354913,1748212241496,-428.81726124,0.00019993,2]
[362354914,1748212241505,-292.48,0.00019993,2]
[362354915,1748212241515,-550.41,0.00019993,2]
[362354916,1748212241525,-528.97,0.00019993,2]
[362354917,1748212241535,-230.9,0.00019993,2]
[362354918,1748212241545,-500.0,0.00019993,2]
[362354919,1748212241554,-420.0,0.00019993,2]
[362354920,1748212241564,-166.57,0.00019993,2]
[362354921,1748212241573,-420.0,0.00019993,2]
[362354922,1748212241583,-420.0,0.00019993,2]
[362354923,1748212241592,-197.28,0.00019993,2]
[362354924,1748212241601,-501.74,0.00019993,2]
[362354925,1748212241611,-326.95,0.00019993,2]
[362354926,1748212241621,-266.5,0.00019993,2]
[362354927,1748212241632,-234.36,0.00019993,2]
[362354928,1748212241641,-519.12,0.00019993,2]
[362354929,1748212241651,-296.45,0.00019993,2]
[362354930,1748212241661,-420.0,0.00019993,2]
[362354931,1748212241671,-420.0,0.00019993,2]
[362354932,1748212241680,-565.58,0.00019993,2]
[362354933,1748212241689,-423.25063819,0.00019993,2]
[362354934,1748212241698,-420.0,0.00019993,2]
[362354935,1748212241709,-436.22,0.00019993,2]
[362354936,1748212241719,-420.0,0.00019993,2]
[362354937,1748212241729,-420.0,0.00019993,2]
[362354938,1748212241740,-422.3336937,0.00019993,2]
[362354939,1748212241749,-500.0,0.00019993,2]
[362354940,1748212241759,-420.0,0.00019993,2]
[362354941,1748212241768,-420.0,0.00019993,2]
[362354942,1748212241777,-420.0,0.00019993,2]
[362354943,1748212241786,-420.0,0.00019993,2]
[362354944,1748212241795,-420.0,0.00019993,2]
[362354945,1748212241804,-420.0,0.00019993,2]
[362354946,1748212241814,-420.0,0.00019993,2]
[362354947,1748212241823,-420.0,0.00019993,2]
[362354948,1748212241832,-420.0,0.00019993,2]
[362354949,1748212241842,-420.0,0.00019993,2]
[362354950,1748212241851,-383.04926044,0.00019993,2]
[362354951,1748212241860,-385.60160784,0.00019993,2]
[362354952,1748212241870,-420.0,0.00019993,2]
[362354953,1748212241879,-420.0,0.00019993,2]
[362354954,1748212241888,-420.0,0.00019993,2]
[362354955,1748212241898,-420.0,0.00019993,2]
[362354956,1748212241908,-420.0,0.00019993,2]
[362354957,1748212241919,-420.0,0.00019993,2]
[362354958,1748212241929,-420.0,0.00019993,2]
[362354959,1748212241939,-425.78542429,0.00019993,2]
[362354960,1748212241949,-420.0,0.00019993,2]
[362354961,1748212241962,-420.0,0.00019993,2]
[362354962,1748212241972,-423.77219445,0.00019993,2]
[362354963,1748212241981,-420.0,0.00019993,2]
[362354964,1748212241990,-420.0,0.00019993,2]
[362354965,1748212241999,-420.0,0.00019993,2]
[362354966,1748212242009,-420.0,0.00019993,2]
[362354967,1748212242018,-420.0,0.00019993,2]
[362354968,1748212242027,-420.0,0.00019993,2]
[362354969,1748212242036,-420.0,0.00019993,2]
[362354970,1748212242045,-420.0,0.00019993,2]
[362354971,1748212242055,-425.011853,0.00019993,2]
[362354972,1748212242066,-420.0,0.00019993,2]
[362354973,1748212242076,-421.16512787,0.00019993,2]
[362354974,1748212242085,-420.0,0.00019993,2]
[362354975,1748212242095,-420.0,0.00019993,2]
[362354976,1748212242104,-420.0,0.00019993,2]
[362354977,1748212242113,-423.07710128,0.00019993,2]
[362354978,1748212242123,-420.0,0.00019993,2]
[362354979,1748212242131,-420.0,0.00019993,2]
[362354980,1748212242142,-420.0,0.00019993,2]
[362354981,1748212242152,-420.0,0.00019993,2]
[362354982,1748212242162,-345.89,0.00019993,2]
[362354983,1748212242171,-420.0,0.00019993,2]
[362354984,1748212242181,-420.0,0.00019993,2]
[362354985,1748212242193,-420.0,0.00019993,2]
[362354986,1748212242204,-420.0,0.00019993,2]
[362354987,1748212242213,-420.0,0.00019993,2]
[362354988,1748212242222,-420.0,0.00019993,2]
[362354989,1748212242231,-420.0,0.00019993,2]
[362354990,1748212242240,-423.52195514,0.00019993,2]
[362354991,1748212242250,-461.99,0.00019993,2]
[362354992,1748212242260,-420.0,0.00019993,2]
[362354993,1748212242269,-420.0,0.00019993,2]
[362354994,1748212242279,-420.0,0.00019993,2]
[362354995,1748212242288,-425.29123412,0.00019993,2]
[362354996,1748212242298,-420.0,0.00019993,2]
[362354997,1748212242307,-420.0,0.00019993,2]
[362354998,1748212242316,-420.0,0.00019993,2]
[362354999,1748212242325,-420.0,0.00019993,2]
[362355000,1748212242335,-420.0,0.00019993,2]
[362355001,1748212242344,-420.0,0.00019993,2]
[362355002,1748212242354,-420.0,0.00019993,2]
[362355003,1748212242363,-423.93150644,0.00019993,2]
[362355004,1748212242372,-164.59,0.00019993,2]
[362355005,1748212242385,-420.0,0.00019993,2]
[362355006,1748212242394,-420.0,0.00019993,2]
[362355007,1748212242403,-420.0,0.00019993,2]
[362355008,1748212242413,-524.34,0.00019993,2]
[362355009,1748212242422,-421.66674383,0.00019993,2]
[362355010,1748212242431,-420.0,0.00019993,2]
[362355011,1748212242440,-420.0,0.00019993,2]
[362355012,1748212242449,-420.0,0.00019993,2]
[362355013,1748212242460,-420.0,0.00019993,2]
[362355014,1748212242470,-420.0,0.00019993,2]
[362355015,1748212242479,-420.0,0.00019993,2]
[362355016,1748212242488,-420.0,0.00019993,2]
[362355017,1748212242498,-420.0,0.00019993,2]
[362355018,1748212242507,-420.0,0.00019993,2]
[362355019,1748212242516,-498.26,0.00019993,2]
[362355020,1748212242527,-420.0,0.00019993,2]
[362355021,1748212242536,-420.0,0.00019993,2]
[362355023,1748212242546,-420.0,0.00019993,2]
[362355025,1748212242556,-420.0,0.00019993,2]
[362355027,1748212242565,-420.0,0.00019993,2]
[362355028,1748212242575,-380.6,0.00019993,2]
[362355029,1748212242584,-420.0,0.00019993,2]
[362355030,1748212242593,-420.0,0.00019994,2]
[362355032,1748212242603,-420.0,0.00019994,2]
[362355033,1748212242611,-240.49,0.00019994,2]
[362355034,1748212242621,-420.0,0.00019994,2]
[362355035,1748212242631,-420.0,0.00019994,2]
[362355036,1748212242640,-420.0,0.00019994,2]
[362355037,1748212242650,-420.0,0.00019994,2]
[362355038,1748212242659,-420.0,0.00019994,2]
[362355039,1748212242668,-420.0,0.00019994,2]
[362355040,1748212242678,-420.0,0.00019994,2]
[362355041,1748212242688,-420.0,0.00019994,2]
[362355043,1748212242697,-420.0,0.00019994,2]
[362355044,1748212242709,-420.0,0.00019994,2]
[362355045,1748212242719,-420.0,0.00019994,2]
[362355046,1748212242729,-420.0,0.00019994,2]
[362355047,1748212242741,-420.0,0.00019994,2]
[362355048,1748212242751,-420.0,0.00019994,2]
[362355049,1748212242760,-420.0,0.00019994,2]
[362355050,1748212242770,-420.0,0.00019994,2]
[362355051,1748212242779,-420.0,0.00019994,2]
[362355052,1748212242788,-420.0,0.00019994,2]
[362355053,1748212242797,-420.0,0.00019994,2]
[362355054,1748212242806,-420.0,0.00019994,2]
[362355055,1748212242817,-420.0,0.00019994,2]
[362355056,1748212242826,-420.0,0.00019994,2]
[362355057,1748212242835,-420.0,0.00019994,2]
[362355058,1748212242844,-466.27,0.00019994,2]
[362355059,1748212242853,-420.0,0.00019994,2]
[362355060,1748212242863,-420.0,0.00019994,2]
[362355061,1748212242872,-420.0,0.00019994,2]
[362355062,1748212242881,-420.0,0.00019994,2]
[362355063,1748212242890,-420.0,0.00019994,2]
[362355064,1748212242900,-186.73,0.00019994,2]
[362355065,1748212242909,-420.0,0.00019994,2]
[362355066,1748212242919,-420.0,0.00019994,2]
[362355067,1748212242930,-420.0,0.00019994,2]
[362355068,1748212242940,-420.0,0.00019994,2]
[362355069,1748212242950,-395.08,0.00019994,2]
[362355070,1748212242962,-420.0,0.00019994,2]
[362355071,1748212242971,-420.0,0.00019994,2]
[362355072,1748212242980,-420.0,0.00019994,2]
[362355073,1748212242989,-420.0,0.00019994,2]
[362355074,1748212242999,-420.0,0.00019994,2]
[362355075,1748212243009,-396.07,0.00019994,2]
[362355076,1748212243019,-420.0,0.00019994,2]
[362355077,1748212243029,-250.46,0.00019994,2]
[362355078,1748212243039,-420.0,0.00019994,2]
[362355079,1748212243049,-420.0,0.00019994,2]
[362355080,1748212243059,-420.0,0.00019994,2]
[362355081,1748212243068,-287.84,0.00019994,2]
[362355082,1748212243079,-420.0,0.00019994,2]
[362355083,1748212243088,-420.0,0.00019994,2]
[362355084,1748212243099,-420.0,0.00019994,2]
[362355085,1748212243108,-420.0,0.00019994,2]
[362355086,1748212243118,-420.0,0.00019994,2]
[362355087,1748212243127,-420.0,0.00019994,2]
[362355088,1748212243137,-392.94,0.00019994,2]
[362355089,1748212243147,-420.0,0.00019994,2]
[362355090,1748212243157,-420.0,0.00019994,2]
[362355091,1748212243166,-420.0,0.00019994,2]
[362355092,1748212243177,-420.0,0.00019994,2]
[362355093,1748212243186,-420.0,0.00019994,2]
[362355095,1748212243196,-420.0,0.00019994,2]
[362355097,1748212243208,-427.79,0.00019994,2]
[362355100,1748212243217,-420.0,0.00019994,2]
[362355103,1748212243226,-213.34,0.00019994,2]
[362355105,1748212243235,-420.0,0.00019994,2]
[362355107,1748212243244,-420.0,0.00019994,2]
[362355109,1748212243254,-420.0,0.00019994,2]
[362355111,1748212243263,-420.0,0.00019994,2]
[362355113,1748212243273,-420.0,0.00019994,2]
[362355115,1748212243283,-420.0,0.00019994,2]
[362355117,1748212243292,-420.0,0.00019994,2]
[362355139,1748212243490,-420.0,0.00019994,2]
[362355141,1748212243501,-566.0058843,0.00019994,2]
[362355144,1748212243511,-264.51,0.00019994,2]
[362355145,1748212243521,-420.0,0.00019994,2]
[362355147,1748212243530,-242.7,0.00019994,2]
[362355149,1748212243539,-420.0,0.00019994,2]
[362355151,1748212243548,-420.0,0.00019994,2]
[362355153,1748212243558,-420.0,0.00019994,2]
[362355155,1748212243567,-510.66,0.00019994,2]
[362355157,1748212243576,-420.0,0.00019994,2]
[362355159,1748212243586,-420.0,0.00019994,2]
[362355161,1748212243596,-420.0,0.00019994,2]
[362355163,1748212243605,-420.0,0.00019994,2]
[362355165,1748212243614,-420.0,0.00019994,2]
[362355167,1748212243623,-420.0,0.00019994,2]
[362355169,1748212243633,-420.0,0.00019994,2]
[362355171,1748212243641,-420.0,0.00019994,2]
[362355173,1748212243651,-420.0,0.00019994,2]
[362355175,1748212243660,-420.0,0.00019994,2]
[362355177,1748212243669,-420.0,0.00019994,2]
[362355179,1748212243678,-420.0,0.00019994,2]
[362355181,1748212243688,-185.94,0.00019994,2]
[362355183,1748212243697,-406.48,0.00019994,2]
[362355185,1748212243709,-420.0,0.00019994,2]
[362355187,1748212243719,-450.5,0.00019994,2]
[362355189,1748212243730,-420.0,0.00019994,2]
[362355191,1748212243741,-313.68,0.00019994,2]
[362355193,1748212243751,-420.0,0.00019994,2]
[362355195,1748212243760,-443.36,0.00019994,2]
[362355197,1748212243770,-420.0,0.00019994,2]
[362355199,1748212243779,-420.0,0.00019994,2]
[362355201,1748212243789,-420.0,0.00019994,2]
[362355203,1748212243798,-420.0,0.00019994,2]
[362355205,1748212243808,-420.0,0.00019994,2]
[362355207,1748212243818,-420.0,0.00019994,2]
[362355209,1748212243827,-420.0,0.00019994,2]
[362355211,1748212243836,-420.0,0.00019994,2]
[362355213,1748212243845,-420.0,0.00019994,2]
[362355215,1748212243854,-420.0,0.00019994,2]
[362355217,1748212243863,-491.99,0.00019994,2]
[362355218,1748212243872,-144457.3129999,0.00019995,2]
[362355220,1748212243881,-12414.4412867,0.00019995,2]
[362355222,1748212243890,-48533.5358031,0.00019995,2]
[362355224,1748212243900,-6012.2862002,0.00019995,2]
[362355226,1748212243909,-420.0,0.00019997,2]
[362355228,1748212243918,-500.0,0.00019997,2]
[362355230,1748212243927,-420.0,0.00019997,2]
[362355232,1748212243937,-317.76,0.00019997,2]
[362355234,1748212243947,-420.0,0.00019997,2]
[362355236,1748212243958,-420.0,0.00019997,2]
[362355238,1748212243967,-222.3366853,0.00019997,2]
[362355240,1748212243977,-388.14284135,0.00019997,2]
[362355260,1748212244171,-209.0,0.00018835,2]
[362355263,1748212244181,-420.0,0.00019779,2]
[362355265,1748212244191,-354.9982267,0.00019779,2]
[362355412,1748212245647,-154.0,0.00019637,2]
[362355414,1748212245657,-145.0017733,0.00019779,2]
[362355416,1748212245667,-420.0,0.00019779,2]
[362355418,1748212245676,-420.0,0.00019779,2]
[362355420,1748212245686,-420.0,0.00019779,2]
[362355422,1748212245695,-420.0,0.00019779,2]
[362355424,1748212245705,-420.0,0.00019779,2]
[362355426,1748212245714,-420.0,0.00019779,2]
[362355428,1748212245724,-420.0,0.00019898,2]
[362355430,1748212245736,-314.1,0.00019898,2]
[362355432,1748212245745,-622.22867821,0.000199,2]
[362355434,1748212245756,-160.55715865,0.00019997,2]
[362355436,1748212245765,-420.0,0.00019997,2]
[362355438,1748212245776,-75.10202924,0.00019997,2]
[362355440,1748212245787,-344.89797076,0.00019997,2]
[362355442,1748212245797,-420.0,0.00019997,2]
[362355444,1748212245807,-420.0,0.00019997,2]
[362355446,1748212245817,-420.0,0.00019997,2]
[362355448,1748212245827,-420.0,0.00019997,2]
[362355450,1748212245837,-420.0,0.00019997,2]
[362355452,1748212245847,-420.0,0.00019997,2]
[362355454,1748212245856,-420.0,0.00019997,2]
[362355456,1748212245866,-423.54631575,0.00019998,2]
[362355458,1748212245875,-233.83,0.00019998,2]
[362355460,1748212245885,-420.0,0.00019998,2]
[362355461,1748212245895,-420.0,0.00019998,2]
[362355462,1748212245904,-206.46,0.00019998,2]
[362355463,1748212245916,-420.0,0.00019998,2]
[362355464,1748212245926,-420.0,0.00019998,2]
[362355465,1748212245936,-421.21,0.00019998,2]
[362355466,1748212245945,-528.92,0.00019998,2]
[362355467,1748212245955,-500.0,0.00019998,2]
[362355468,1748212245965,-218.78,0.00019998,2]
[362355469,1748212245974,-216.39,0.00019998,2]
[362355470,1748212245984,-420.0,0.00019998,2]
[362355471,1748212245994,-420.0,0.00019998,2]
[362355472,1748212246004,-420.0,0.00019998,2]
[362355473,1748212246014,-552.3,0.00019998,2]
[362355474,1748212246023,-420.0,0.00019998,2]
[362355475,1748212246032,-420.0,0.00019998,2]
[362355477,1748212246042,-420.0,0.00019998,2]
[362355479,1748212246051,-420.0,0.00019998,2]
[362355481,1748212246061,-420.0,0.00019998,2]
[362355483,1748212246070,-420.0,0.00019998,2]
[362355485,1748212246080,-420.0,0.00019998,2]
[362355487,1748212246089,-420.0,0.00019998,2]
[362355489,1748212246099,-420.0,0.00019998,2]
[362355491,1748212246109,-420.0,0.00019998,2]
[362355493,1748212246119,-420.0,0.00019998,2]
[362355495,1748212246129,-420.0,0.00019998,2]
[362355497,1748212246139,-420.0,0.00019998,2]
[362355499,1748212246148,-377.14,0.00019998,2]
[362355501,1748212246157,-420.0,0.00019998,2]
[362355503,1748212246166,-420.0,0.00019998,2]
[362355505,1748212246175,-420.0,0.00019998,2]
[362355507,1748212246185,-568.45,0.00019998,2]
[362355509,1748212246194,-234.49,0.00019998,2]
[362355511,1748212246204,-208.82,0.00019998,2]
[362355513,1748212246215,-420.0,0.00019998,2]
[362355515,1748212246224,-420.0,0.00019998,2]
[362355517,1748212246234,-278.0,0.00019998,2]
[362355519,1748212246244,-420.0,0.00019998,2]
[362355521,1748212246253,-420.0,0.00019998,2]
[362355523,1748212246263,-500.0,0.00019998,2]
[362355525,1748212246273,-209.27,0.00019998,2]
[362355527,1748212246283,-326.17,0.00019998,2]
[362355529,1748212246292,-462.05,0.00019998,2]
[362355531,1748212246302,-420.0,0.00019998,2]
[362355533,1748212246311,-420.0,0.00019998,2]
[362355535,1748212246321,-72.69927581,0.00019998,2]
[362355538,1748212246342,-347.30072419,0.00019998,2]
[362355540,1748212246352,-420.0,0.00019998,2]
[362355542,1748212246361,-134.51554987,0.00019998,2]
[362355544,1748212246373,-285.48445013,0.00019998,2]
[362355546,1748212246383,-295.89055069,0.00019998,2]
[362355600,1748212383233,173.33,0.00015183,2]
[362355601,1748212440152,374.17,0.00013699,2]
[362355604,1748212652207,1000.0,0.00027397,120]
[362355605,1748212661206,1000.0,0.00027397,120]
[362355606,1748212671385,1000.0,0.00027397,120]
[362355607,1748212679539,500.0,0.00027397,120]
[362355608,1748212738261,500.0,0.00027397,120]
[362355611,1748213171046,250.0,0.00015,2]
[362355612,1748213173413,-265.03476692,0.00017,2]
[362355613,1748213176323,-34.96523308,0.00017,2]
[362355614,1748213300469,-153.35,0.0001654,2]
[362355615,1748213303227,-153.35,0.0001654,2]
[362355616,1748213304754,-153.35,0.0001654,2]
[362355617,1748213306819,-204.03008108,0.0001654,2]
[362355618,1748213309921,-151.54795426,0.0001654,2]
[362355619,1748213312324,-211.25783763,0.0001654,2]
[362355620,1748213315111,-290.85797411,0.0001654,2]
[362355621,1748213317721,-420.0,0.0001654,2]
[362355622,1748213319318,-106.09615292,0.0001654,2]
[362355624,1748213431812,-151.0,0.00017334,2]
[362355625,1748213431823,-151.0,0.00017346,2]
[362355626,1748213431833,-151.0,0.0001735,2]
[362355627,1748213431843,-203.0,0.00018002,2]
[362355628,1748213431854,-666.4,0.00018349,2]
[362355629,1748213431863,-152.98653759,0.00018402,2]
[362355630,1748213431871,-300.0,0.00018421,2]
[362355631,1748213431881,-491.06268246,0.00018421,2]
[362355632,1748213431897,-708.93731754,0.00018421,2]
[362355633,1748213432121,-500.0,0.00018422,2]
[362355634,1748213432130,-150.0,0.00018422,2]
[362355635,1748213432144,-500.0,0.00018422,2]
[362355636,1748213432154,-500.0,0.00018422,2]
[362355638,1748213432164,-500.0,0.00018422,2]
[362355640,1748213432174,-500.0,0.00018422,2]
[362355642,1748213432183,-500.0,0.00018422,2]
[362355644,1748213432192,-153.96722937,0.00018422,2]
[362355646,1748213432201,-500.0,0.00018422,2]
[362355648,1748213432210,-357.02368236,0.00018422,2]
[362355649,1748213432220,-500.0,0.00018422,2]
[362355651,1748213432230,-500.0,0.00018422,2]
[362355653,1748213432242,-275.34263991,0.00018422,2]
[362355655,1748213432252,-171616.2933333,0.00018423,2]
[362355657,1748213432261,-20801.7672264,0.00018423,2]
[362355659,1748213432272,-29302.40139447,0.00018423,2]
[362355662,1748213432283,-7248.10520637,0.00018423,2]
[362355665,1748213432302,-27809.81951254,0.00018423,2]
[362355670,1748213432349,-191.25524772,0.00018422,2]
[362355672,1748213432359,-211.05515606,0.00018422,2]
[362355674,1748213432369,-177.07164785,0.00018422,2]
[362355676,1748213432378,-10349.45835838,0.00018423,2]
[362355682,1748213437917,-201.27319097,0.00018422,2]
[362355683,1748213437927,-148.47589183,0.00018423,2]
[362355684,1748213438051,-14923.56837281,0.00018423,2]
[362355685,1748213438060,-185.09,0.00018436,2]
[362355686,1748213438070,-500.0,0.00018449,2]
[362355687,1748213438079,-500.0,0.00018473,2]
[362355688,1748213438089,-500.0,0.00018473,2]
[362355689,1748213438099,-502.93448441,0.00018473,2]
[362355690,1748213438111,-500.0,0.00018473,2]
[362355691,1748213438121,-165.74132346,0.00018512,2]